bitfinex/quotes_BTCUSD_20230114
["timestamp","ask_amount","ask_price","bid_price","bid_amount"]
[1673664052223,0.17468147,20990.0,20988.0,0.77068572]
[1673664053137,0.18803905,20991.0,20988.0,1.24788741]
[1673664053369,1.1681,20992.0,20989.0,0.47720169]
[1673664053621,1.1681,20992.0,20990.0,1.238684]
[1673664053866,0.15846543,20993.0,20990.0,1.42940995]
[1673664054110,0.15846543,20993.0,20990.0,1.90661164]
[1673664054330,0.19473017,20992.0,20990.0,1.71588569]
[1673664054581,0.19473017,20992.0,20990.0,0.619342]
[1673664056034,0.170742,20991.0,20990.0,0.619342]
[1673664056258,0.19473017,20992.0,20990.0,0.619342]
[1673664056738,0.170742,20991.0,20990.0,0.619342]
[1673664056975,0.19473017,20992.0,20990.0,0.619342]
[1673664057230,0.01309017,20993.0,20990.0,0.80252703]
[1673664057463,0.01309017,20993.0,20991.0,0.17787868]
[1673664057702,0.21060212,20993.0,20992.0,0.619283]
[1673664057937,0.01309017,20993.0,20991.0,0.619291]
[1673664058172,0.15840861,20992.0,20991.0,0.619291]
[1673664058430,0.15840861,20992.0,20990.0,0.619342]
[1673664058904,0.15840861,20992.0,20990.0,0.78367104]
[1673664059363,0.15840861,20992.0,20991.0,0.47720169]
[1673664059588,0.01309017,20993.0,20991.0,0.77250017]
[1673664059589,0.15634951,20993.0,20991.0,0.77250017]
[1673664060039,0.19273636,20992.0,20991.0,0.619313]
[1673664060494,0.36347836,20992.0,20991.0,0.619313]
[1673664060722,0.36347836,20992.0,20990.0,0.76525003]
[1673664061058,0.19273636,20992.0,20990.0,0.619342]
[1673664061268,0.19273636,20992.0,20987.0,0.76152425]
[1673664061269,0.170742,20991.0,20987.0,0.76152425]
[1673664061516,0.09848708,20990.0,20987.0,0.00019]
[1673664061745,0.170742,20989.0,20987.0,0.00019]
[1673664061980,0.09848708,20990.0,20987.0,0.00019]
[1673664061981,0.77339692,20991.0,20987.0,0.00019]
[1673664062224,0.2,20989.0,20986.0,0.17537687]
[1673664062463,3.37113478,20992.0,20984.0,0.14192525]
[1673664062704,0.15400398,20988.0,20985.0,0.35803717]
[1673664062934,0.15400398,20988.0,20985.0,0.16731122]
[1673664063176,0.15400398,20988.0,20985.0,0.30923647]
[1673664063412,2.88249148,20992.0,20985.0,0.92872247]
[1673664063656,0.19345802,20990.0,20986.0,0.3326512]
[1673664063862,0.17100312,20989.0,20986.0,0.9521092]
[1673664064085,0.18264723,20988.0,20985.0,1.14161034]
[1673664064325,0.18264723,20988.0,20985.0,0.92872247]
[1673664065261,0.18264723,20988.0,20985.0,0.78679722]
[1673664066221,0.18264723,20988.0,20986.0,0.17078207]
[1673664066446,0.18264723,20988.0,20986.0,0.79024107]
[1673664066914,0.14941982,20990.0,20986.0,1.26744276]
[1673664067145,0.14941982,20990.0,20986.0,1.45816871]
[1673664067624,0.14941982,20990.0,20987.0,0.20012772]
[1673664068335,0.170742,20989.0,20986.0,1.90684164]
[1673664068582,0.14941982,20990.0,20986.0,1.71611569]
[1673664068837,0.02018681,20989.0,20986.0,1.71611569]
[1673664069077,0.02018681,20989.0,20986.0,1.09665669]
[1673664069547,0.02018681,20989.0,20987.0,0.17761741]
[1673664070030,0.02018681,20989.0,20987.0,0.79693296]
[1673664071440,0.14911563,20990.0,20987.0,0.79693296]
[1673664071681,0.14911563,20990.0,20988.0,0.19593956]
[1673664072826,0.170742,20989.0,20988.0,0.19593956]
[1673664073060,0.170742,20989.0,20986.0,1.09665669]
[1673664073061,0.2,20988.0,20983.0,1.59385812]
[1673664073298,0.49770578,20991.0,20984.0,0.15432354]
[1673664073299,0.26922908,20987.0,20984.0,0.15432354]
[1673664073533,0.09848708,20987.0,20984.0,0.15432354]
[1673664073995,0.83264548,20990.0,20985.0,0.14270325]
[1673664074242,0.83264548,20990.0,20986.0,0.19072595]
[1673664074473,0.170742,20989.0,20986.0,0.19072595]
[1673664074706,0.2,20989.0,20985.0,0.14270325]
[1673664074971,0.170742,20988.0,20985.0,0.14270325]
[1673664075230,0.24246525,20989.0,20985.0,0.14270325]
[1673664075467,0.17833672,20988.0,20984.0,0.79519011]
[1673664075710,0.2768238,20988.0,20984.0,0.79519011]
[1673664076486,0.2768238,20988.0,20984.0,0.17567211]
[1673664076720,0.09848708,20988.0,20983.0,1.09691769]
[1673664076952,0.26922908,20987.0,20983.0,1.27565676]
[1673664077183,0.09848708,20986.0,20982.0,0.00734244]
[1673664077437,0.09848708,20986.0,20979.0,0.98180956]
[1673664077438,0.26922908,20985.0,20979.0,0.62699644]
[1673664077681,0.09848708,20984.0,20979.0,0.77660656]
[1673664077917,0.09848708,20984.0,20981.0,0.17954306]
[1673664078144,0.1728968,20983.0,20981.0,0.79915006]
[1673664078389,0.1728968,20983.0,20980.0,0.619613]
[1673664078661,0.27138388,20983.0,20980.0,0.619613]
[1673664078890,0.1728968,20983.0,20980.0,0.78178952]
[1673664081273,0.1728968,20983.0,20979.0,1.10419813]
[1673664081274,0.09848708,20983.0,20979.0,0.00734244]
[1673664081520,0.170742,20982.0,20979.0,0.00734244]
[1673664081753,0.09848708,20982.0,20979.0,0.00734244]
[1673664081964,0.170742,20981.0,20979.0,0.00734244]
[1673664082199,1.06544344,20983.0,20979.0,0.00734244]
[1673664082434,0.170742,20982.0,20979.0,0.00734244]
[1673664082675,0.619549,20983.0,20979.0,0.00734244]
[1673664082898,0.170742,20982.0,20979.0,0.19806839]
[1673664083134,0.619549,20983.0,20979.0,0.00734244]
[1673664083368,0.170742,20982.0,20979.0,0.00734244]
[1673664083601,0.2,20982.0,20979.0,0.00734244]
[1673664083874,0.2,20982.0,20979.0,0.19806839]
[1673664083875,0.170742,20981.0,20979.0,0.19806839]
[1673664084132,0.14635446,20982.0,20979.0,0.17813189]
[1673664084374,0.14635446,20982.0,20979.0,0.00734244]
[1673664084604,0.170742,20981.0,20979.0,0.00734244]
[1673664084847,0.61323734,20982.0,20979.0,0.00734244]
[1673664085103,0.370742,20981.0,20979.0,0.00734244]
[1673664085350,0.2,20981.0,20979.0,0.00734244]
[1673664085603,0.170742,20980.0,20979.0,0.00734244]
[1673664086337,0.33914058,20980.0,20979.0,0.00734244]
[1673664086574,0.170742,20980.0,20979.0,0.00734244]
[1673664087049,0.32083615,20980.0,20979.0,0.00734244]
[1673664087280,0.170742,20980.0,20979.0,0.00734244]
[1673664087510,0.31354348,20980.0,20979.0,0.00734244]
[1673664089376,0.18045397,20982.0,20979.0,0.22979935]
[1673664089629,0.15601227,20981.0,20979.0,0.4205253]
[1673664089858,0.15003328,20980.0,20979.0,0.00734244]
[1673664090596,1.06541344,20984.0,20979.0,0.06337244]
[1673664090838,0.14115227,20984.0,20980.0,0.19072595]
[1673664091086,0.14115227,20984.0,20981.0,0.19072595]
[1673664091304,1.06530044,20988.0,20981.0,0.81033295]
[1673664091305,0.619406,20988.0,20981.0,0.81033295]
[1673664091554,0.18291972,20987.0,20982.0,0.36555529]
[1673664091789,0.18291972,20987.0,20983.0,0.81026195]
[1673664093184,0.14362415,20988.0,20984.0,0.19072595]
[1673664093417,0.14362415,20988.0,20985.0,0.619477]
[1673664093658,0.14362415,20988.0,20985.0,0.81020295]
[1673664093874,0.14362415,20988.0,20986.0,0.19136552]
[1673664094339,0.6311595,20992.0,20986.0,0.19136552]
[1673664094566,0.1863008,20991.0,20987.0,0.19072595]
[1673664094800,0.170742,20990.0,20987.0,0.19072595]
[1673664095032,0.1863008,20991.0,20986.0,0.81082452]
[1673664095255,0.170742,20990.0,20986.0,1.00155047]
[1673664095512,0.1863008,20991.0,20986.0,0.81082452]
[1673664095513,0.28478788,20991.0,20986.0,0.81082452]
[1673664095744,0.28478788,20991.0,20986.0,1.00155047]
[1673664095745,0.170742,20990.0,20986.0,1.00155047]
[1673664095979,0.170742,20990.0,20986.0,0.81082452]
[1673664095980,0.09848708,20990.0,20986.0,0.81082452]
[1673664096217,0.170742,20989.0,20986.0,0.81082452]
[1673664096498,0.1513194,20989.0,20987.0,0.18314382]
[1673664096741,0.15220368,20990.0,20987.0,0.18314382]
[1673664097161,0.15821835,20989.0,20987.0,0.18314382]
[1673664097427,0.170742,20988.0,20987.0,0.18314382]
[1673664097660,0.15821835,20989.0,20986.0,0.81499296]
[1673664098872,0.15821835,20989.0,20987.0,0.18967402]
[1673664099103,0.170742,20988.0,20987.0,0.18967402]
[1673664099363,0.619344,20990.0,20984.0,0.00019]
[1673664099614,0.71786208,20989.0,20984.0,0.35170275]
[1673664099842,0.170742,20988.0,20984.0,0.1609768]
[1673664100086,0.09848708,20988.0,20984.0,0.1609768]
[1673664100372,0.170742,20987.0,20984.0,0.1609768]
[1673664100625,0.09848708,20988.0,20984.0,0.1609768]
[1673664100852,0.170742,20987.0,20984.0,0.1609768]
[1673664101100,0.71788908,20988.0,20984.0,0.1609768]
[1673664101341,0.170742,20987.0,20984.0,0.1609768]
[1673664101575,0.71788908,20988.0,20982.0,0.00019]
[1673664101865,0.09848708,20987.0,20982.0,0.19091595]
[1673664102091,0.09848708,20987.0,20982.0,0.38548372]
[1673664102092,0.170742,20985.0,20982.0,0.38548372]
[1673664102333,0.09848708,20987.0,20983.0,0.7869535]
[1673664102576,0.14923794,20988.0,20983.0,0.97767945]
[1673664102833,0.19990733,20987.0,20983.0,0.97767945]
[1673664103553,0.19990733,20987.0,20983.0,1.45488114]
[1673664104306,0.1686724,20986.0,20983.0,1.26415519]
[1673664104540,0.26715948,20986.0,20983.0,1.26415519]
[1673664104747,0.170742,20985.0,20983.0,1.26415519]
[1673664105013,0.170742,20984.0,20983.0,1.26415519]
[1673664105246,0.1686724,20986.0,20983.0,1.26415519]
[1673664105478,0.170742,20985.0,20983.0,1.26415519]
[1673664105751,0.1686724,20986.0,20983.0,0.7869535]
[1673664105997,0.170742,20985.0,20983.0,0.1674065]
[1673664106228,0.1686724,20986.0,20983.0,0.1674065]
[1673664106467,0.170742,20985.0,20983.0,0.1674065]
[1673664106693,0.1686724,20986.0,20983.0,0.1674065]
[1673664106988,0.170742,20985.0,20983.0,0.1674065]
[1673664107217,0.1686724,20986.0,20982.0,0.619578]
[1673664107454,0.15360615,20985.0,20982.0,0.78659554]
[1673664107716,0.170742,20984.0,20982.0,0.78659554]
[1673664107967,0.15360615,20985.0,20982.0,0.78659554]
[1673664108404,0.170742,20984.0,20982.0,0.78659554]
[1673664108916,0.36030889,20987.0,20984.0,0.14217233]
[1673664109207,0.15451512,20989.0,20985.0,0.33996968]
[1673664109436,0.170742,20988.0,20986.0,0.19072595]
[1673664109675,0.15451512,20989.0,20986.0,0.19072595]
[1673664110117,0.15451512,20989.0,20986.0,0.5730369]
[1673664110379,0.15451512,20989.0,20986.0,0.38231095]
[1673664110612,0.170742,20988.0,20986.0,0.38231095]
[1673664110876,0.15451512,20989.0,20986.0,0.38231095]
[1673664111110,0.15451512,20989.0,20986.0,0.17231095]
[1673664111343,0.170742,20988.0,20986.0,0.17231095]
[1673664111583,0.15451512,20989.0,20986.0,0.17231095]
[1673664111844,0.170742,20988.0,20986.0,0.17231095]
[1673664112084,0.15451512,20989.0,20986.0,0.17231095]
[1673664112329,0.170692,20988.0,20986.0,0.17231095]
[1673664112554,0.15451512,20989.0,20986.0,0.17231095]
[1673664112805,0.170692,20988.0,20986.0,0.17231095]
[1673664113054,0.15451512,20989.0,20986.0,0.17231095]
[1673664113315,0.170692,20988.0,20986.0,0.17231095]
[1673664113558,0.15451512,20989.0,20986.0,0.17231095]
[1673664113809,0.170692,20988.0,20986.0,0.79176895]
[1673664114054,0.15451512,20989.0,20986.0,0.79176895]
[1673664114301,0.170692,20988.0,20986.0,0.79176895]
[1673664114556,0.15451512,20989.0,20986.0,0.17231095]
[1673664114798,0.06,20987.0,20986.0,0.17231095]
[1673664115051,0.230692,20987.0,20986.0,0.17231095]
[1673664115597,0.06,20987.0,20985.0,0.16194761]
[1673664115841,0.06,20987.0,20985.0,0.78143461]
[1673664117527,0.06,20987.0,20984.0,0.619519]
[1673664117528,0.170692,20986.0,20984.0,0.619519]
[1673664117769,0.33252242,20987.0,20984.0,0.619519]
[1673664118015,0.33252242,20987.0,20983.0,1.95919847]
[1673664118016,0.170692,20986.0,20983.0,1.95919847]
[1673664118275,0.25864722,20986.0,20982.0,0.76969852]
[1673664118535,0.170692,20985.0,20982.0,0.76950852]
[1673664118770,0.16016014,20986.0,20984.0,0.18001352]
[1673664119011,0.16016014,20986.0,20982.0,0.77716484]
[1673664119272,0.25864722,20986.0,20982.0,0.77716484]
[1673664119500,0.16016014,20986.0,20982.0,0.77716484]
[1673664119986,0.16016014,20986.0,20984.0,0.17635493]
[1673664120434,0.170692,20985.0,20982.0,0.81027495]
[1673664120705,0.18038462,20985.0,20982.0,0.81656072]
[1673664120957,0.18038462,20985.0,20982.0,0.19701172]
[1673664121446,0.170692,20984.0,20982.0,0.19701172]
[1673664121713,0.18038462,20985.0,20982.0,0.19701172]
[1673664121963,0.15749944,20984.0,20982.0,0.19701172]
[1673664124701,0.170692,20983.0,20982.0,0.19701172]
[1673664125200,0.15749944,20984.0,20982.0,0.19701172]
[1673664126422,0.1500796,20986.0,20982.0,0.19701172]
[1673664126664,0.170692,20985.0,20982.0,0.38773767]
[1673664126925,0.1500796,20986.0,20982.0,0.81658872]
[1673664127131,0.1500796,20986.0,20982.0,1.00731467]
[1673664128125,0.24856668,20986.0,20982.0,0.81658872]
[1673664128361,0.170692,20985.0,20982.0,0.19701172]
[1673664128599,0.170692,20985.0,20980.0,2.68893425]
[1673664128600,0.48291614,20984.0,20980.0,0.00019]
[1673664128834,0.170692,20982.0,20980.0,0.00019]
[1673664129071,0.170692,20981.0,20980.0,0.00019]
[1673664129306,0.370692,20981.0,20980.0,0.00019]
[1673664129538,0.170692,20981.0,20980.0,0.00019]
[1673664129775,0.170692,20981.0,20979.0,0.00734244]
[1673664130030,0.170692,20980.0,20979.0,0.00734244]
[1673664130536,0.21373706,20982.0,20979.0,0.00734244]
[1673664130771,0.170692,20981.0,20979.0,0.00734244]
[1673664131019,0.170692,20980.0,20979.0,0.00734244]
[1673664131257,0.15211731,20981.0,20979.0,0.00734244]
[1673664131498,0.170692,20980.0,20979.0,0.00734244]
[1673664131732,0.35674066,20980.0,20979.0,0.00734244]
[1673664132000,0.3146268,20980.0,20979.0,0.00734244]
[1673664132505,0.170692,20980.0,20979.0,0.00734244]
[1673664132733,0.36528042,20980.0,20979.0,0.00734244]
[1673664132965,0.170692,20980.0,20979.0,0.00734244]
[1673664133443,0.33969883,20980.0,20979.0,0.00734244]
[1673664135377,0.95136889,20980.0,20979.0,0.00734244]
[1673664135614,0.790329,20980.0,20979.0,0.00734244]
[1673664135847,0.35475389,20980.0,20979.0,0.00734244]
[1673664136573,0.35475389,20980.0,20979.0,0.00724637]
[1673664137088,0.18406189,20980.0,20979.0,0.00724637]
[1673664137318,0.35475389,20980.0,20979.0,0.00724637]
[1673664137578,0.18406189,20980.0,20979.0,0.00724637]
[1673664138052,0.790329,20980.0,20979.0,0.00724637]
[1673664139284,0.34186889,20980.0,20979.0,0.00724637]
[1673664141438,0.36239061,20980.0,20979.0,0.00724637]
[1673664142632,0.19169861,20980.0,20979.0,0.00724637]
[1673664143566,0.790329,20980.0,20979.0,0.00724637]
[1673664144340,0.2,20979.0,20978.0,0.01734244]
[1673664144575,2.11111176,20979.0,20978.0,0.01734244]
[1673664144823,2.28180376,20979.0,20978.0,4.244e-05]
[1673664145061,0.819696,20978.0,20977.0,0.00763254]
[1673664145353,0.990388,20978.0,20977.0,0.00763254]
[1673664146313,0.990388,20978.0,20977.0,3.254e-05]
[1673664146539,0.819726,20977.0,20976.0,0.00785661]
[1673664146778,1.44850402,20977.0,20976.0,0.00785661]
[1673664147793,0.990418,20977.0,20976.0,0.00785661]
[1673664148036,1.44850402,20977.0,20976.0,0.00785661]
[1673664148511,0.990418,20977.0,20976.0,0.00785661]
[1673664148742,1.44850402,20977.0,20976.0,0.00785661]
[1673664149702,1.56250402,20977.0,20976.0,0.00785661]
[1673664149934,1.56250402,20977.0,20976.0,5.661e-05]
[1673664150166,1.61227611,20977.0,20976.0,5.661e-05]
[1673664152622,2.0894778,20977.0,20976.0,5.661e-05]
[1673664154070,2.13711881,20977.0,20976.0,5.661e-05]
[1673664154301,2.91748335,20977.0,20976.0,5.661e-05]
[1673664154552,1.65991712,20977.0,20976.0,5.661e-05]
[1673664154777,1.859355,20975.0,20973.0,0.00651413]
[1673664155023,0.370692,20974.0,20973.0,0.00651413]
[1673664155248,0.990507,20974.0,20973.0,0.00651413]
[1673664156226,0.790507,20974.0,20973.0,0.00651413]
[1673664158133,1.23957,20975.0,20973.0,0.34068317]
[1673664158134,0.15374276,20975.0,20973.0,0.34068317]
[1673664158374,0.15374276,20975.0,20974.0,0.320661]
[1673664158868,0.15374276,20975.0,20973.0,0.00651413]
[1673664161072,0.29306824,20975.0,20973.0,0.00651413]
[1673664161322,0.170692,20974.0,20973.0,0.00651413]
[1673664161557,0.619686,20979.0,20973.0,0.19724008]
[1673664161796,0.619625,20981.0,20975.0,0.042618]
[1673664162040,0.16871161,20978.0,20976.0,0.19072595]
[1673664162549,0.619625,20981.0,20975.0,1.1402]
[1673664162550,0.14451071,20977.0,20975.0,1.1402]
[1673664163025,0.71811208,20981.0,20975.0,1.1402]
[1673664163266,0.97162144,20982.0,20975.0,1.1402]
[1673664163267,0.53780732,20982.0,20977.0,0.19070347]
[1673664163513,0.53780732,20982.0,20978.0,0.19072595]
[1673664163754,0.18578088,20982.0,20979.0,0.19072595]
[1673664164510,0.18578088,20982.0,20977.0,0.81042447]
[1673664164736,0.28426796,20982.0,20977.0,1.00115042]
[1673664164971,0.28426796,20982.0,20977.0,0.81044695]
[1673664165205,0.28426796,20982.0,20978.0,0.2]
[1673664165443,0.18578088,20982.0,20978.0,0.39072595]
[1673664165705,0.18335221,20981.0,20977.0,0.77410864]
[1673664165951,0.29438276,20980.0,20978.0,0.16021013]
[1673664166183,0.19589568,20980.0,20978.0,0.16021013]
[1673664166683,0.29438276,20980.0,20978.0,0.16021013]
[1673664166916,0.19589568,20980.0,20976.0,0.20019]
[1673664167162,0.29438276,20980.0,20976.0,0.16258297]
[1673664167692,0.29438276,20980.0,20976.0,0.16239297]
[1673664168211,0.619638,20980.0,20975.0,1.1402]
[1673664168462,0.170692,20979.0,20975.0,1.1402]
[1673664168705,0.09848708,20979.0,20975.0,1.1402]
[1673664168962,0.86054051,20979.0,20975.0,1.1402]
[1673664169483,0.71816808,20979.0,20975.0,1.1402]
[1673664169947,0.170692,20978.0,20975.0,1.1402]
[1673664170201,0.619712,20978.0,20974.0,0.16639596]
[1673664170430,0.619712,20978.0,20974.0,0.35712191]
[1673664170431,0.170692,20977.0,20974.0,0.35712191]
[1673664170662,0.619712,20978.0,20974.0,0.16639596]
[1673664171148,0.14277707,20977.0,20974.0,0.16639596]
[1673664171388,0.14277707,20977.0,20973.0,0.00651413]
[1673664171628,0.24126415,20977.0,20973.0,0.00651413]
[1673664171862,0.86099215,20977.0,20973.0,0.17565891]
[1673664172362,0.87150518,20977.0,20973.0,0.00651413]
[1673664172907,0.7730181,20977.0,20973.0,0.00651413]
[1673664173163,0.7730181,20977.0,20973.0,0.3895505]
[1673664173404,0.7730181,20977.0,20973.0,0.19882455]
[1673664173651,0.17646115,20976.0,20973.0,0.00651413]
[1673664173890,0.79622015,20976.0,20973.0,0.00651413]
[1673664174140,0.79622015,20976.0,20972.0,0.00811091]
[1673664174141,0.09848708,20975.0,20972.0,0.00811091]
[1673664174406,1.859532,20973.0,20971.0,0.00826141]
[1673664174651,0.170692,20972.0,20971.0,0.00826141]
[1673664174900,0.990566,20972.0,20971.0,0.00826141]
[1673664175410,0.790566,20972.0,20971.0,0.00807141]
[1673664176154,0.890566,20972.0,20971.0,0.00807141]
[1673664176395,0.790566,20972.0,20971.0,0.00807141]
[1673664176882,0.94676006,20972.0,20971.0,0.00807141]
[1673664177913,0.790566,20972.0,20971.0,0.00307141]
[1673664179172,0.990566,20972.0,20971.0,0.00307141]
[1673664179419,0.790566,20972.0,20971.0,0.00307141]
[1673664179921,0.990566,20972.0,20971.0,0.00307141]
[1673664180158,0.790566,20972.0,20971.0,0.00307141]
[1673664180651,1.439806,20971.0,20970.0,0.00652902]
[1673664180884,1.610498,20971.0,20970.0,0.00652902]
[1673664181353,1.610498,20971.0,20966.0,0.00905394]
[1673664181354,2.1670711,20971.0,20964.0,0.00922671]
[1673664181601,2.09577,20969.0,20964.0,0.00922671]
[1673664181841,0.2,20967.0,20964.0,0.00922671]
[1673664182087,1.410794,20966.0,20964.0,0.00922671]
[1673664182334,1.240102,20966.0,20964.0,0.00922671]
[1673664182566,0.170692,20965.0,20964.0,0.00922671]
[1673664182696,0.790773,20965.0,20964.0,0.00922671]
[1673664184458,0.33763891,20965.0,20964.0,0.00922671]
[1673664184691,0.16694691,20965.0,20964.0,0.00922671]
[1673664184926,0.619986,20969.0,20964.0,0.00922671]
[1673664185150,0.619986,20969.0,20965.0,0.19072595]
[1673664185151,0.15890981,20967.0,20965.0,0.19072595]
[1673664185391,0.15890981,20967.0,20964.0,0.16431387]
[1673664185637,0.36066308,20970.0,20965.0,0.66792764]
[1673664185875,0.21368006,20970.0,20967.0,0.2]
[1673664186130,0.3691484,20970.0,20968.0,0.042778]
[1673664186389,0.3691484,20970.0,20967.0,0.820002]
[1673664186622,0.3691484,20970.0,20967.0,0.620002]
[1673664186856,0.21368006,20970.0,20968.0,0.51138695]
[1673664187104,0.21368006,20970.0,20969.0,0.80418353]
[1673664187355,0.21368006,20970.0,20969.0,0.662704]
[1673664187593,0.21368006,20970.0,20969.0,0.84151985]
[1673664187829,0.33355415,20970.0,20969.0,0.84151985]
[1673664188171,0.33355415,20970.0,20965.0,0.63866196]
[1673664188172,0.2,20969.0,20964.0,0.00941671]
[1673664188343,0.2,20969.0,20964.0,0.17961171]
[1673664188344,1.55190708,20968.0,20964.0,0.17961171]
[1673664188574,0.09848708,20967.0,20964.0,0.17961171]
[1673664188829,0.09848708,20967.0,20965.0,0.17643078]
[1673664189063,1.239996,20968.0,20965.0,0.17643078]
[1673664189553,1.33848308,20968.0,20964.0,0.00922671]
[1673664189785,0.15692799,20967.0,20964.0,0.00922671]
[1673664191728,0.15692799,20967.0,20964.0,0.20833138]
[1673664192726,0.15692799,20967.0,20964.0,0.00922671]
[1673664192972,0.71851208,20967.0,20964.0,0.00922671]
[1673664193255,0.213424,20966.0,20964.0,0.00922671]
[1673664193473,0.620025,20967.0,20964.0,0.00922671]
[1673664194190,0.213424,20966.0,20964.0,0.00922671]
[1673664194440,0.213424,20965.0,20964.0,0.00922671]
[1673664194696,0.76108451,20967.0,20964.0,0.00922671]
[1673664195165,0.41189896,20966.0,20964.0,0.00922671]
[1673664195399,0.19847496,20966.0,20964.0,0.00922671]
[1673664195637,0.2,20966.0,20964.0,0.00922671]
[1673664195883,0.820055,20966.0,20964.0,0.00922671]
[1673664196124,0.213424,20965.0,20964.0,0.00922671]
[1673664196604,0.78122903,20966.0,20964.0,0.00922671]
[1673664197083,0.213424,20965.0,20964.0,0.00922671]
[1673664197324,0.78122903,20966.0,20964.0,0.00922671]
[1673664197789,0.16642028,20965.0,20964.0,0.00922671]
[1673664199749,0.09848708,20965.0,20964.0,0.00922671]
[1673664200001,0.833505,20965.0,20964.0,0.00922671]
[1673664200754,0.98543033,20965.0,20964.0,0.00922671]
[1673664201729,1.033505,20965.0,20964.0,0.00922671]
[1673664202219,1.4918377,20965.0,20964.0,0.00922671]
[1673664202464,1.033505,20965.0,20964.0,0.00922671]
[1673664202968,1.322872,20965.0,20964.0,0.00922671]
[1673664203217,1.033505,20965.0,20964.0,0.00922671]
[1673664203957,0.833505,20965.0,20964.0,0.00922671]
[1673664204443,1.033505,20965.0,20964.0,0.00922671]
[1673664206697,1.098625,20965.0,20964.0,0.00922671]
[1673664206939,1.513084,20965.0,20964.0,0.00922671]
[1673664207677,1.447964,20965.0,20964.0,0.00922671]
[1673664207916,0.833505,20965.0,20964.0,0.00922671]
[1673664208451,1.033505,20965.0,20964.0,0.00922671]
[1673664208690,1.51070669,20965.0,20964.0,0.00922671]
[1673664208947,0.2,20964.0,20957.0,0.00838298]
[1673664209197,1.860516,20962.0,20960.0,0.00019]
[1673664209446,0.413424,20961.0,20960.0,0.00019]
[1673664209686,1.033623,20961.0,20960.0,0.00019]
[1673664209926,0.833623,20961.0,20960.0,0.00019]
[1673664210177,1.3230352,20961.0,20960.0,0.00019]
[1673664210383,0.833623,20961.0,20960.0,0.00019]
[1673664211194,0.833623,20961.0,20957.0,0.00838298]
[1673664211431,0.09848708,20960.0,20957.0,0.00838298]
[1673664211676,1.65394,20959.0,20957.0,0.00838298]
[1673664211915,0.620235,20960.0,20958.0,0.18509791]
[1673664212410,0.213424,20959.0,20957.0,0.00838298]
[1673664212665,0.620264,20959.0,20957.0,0.15658907]
[1673664213388,0.620264,20959.0,20957.0,0.00838298]
[1673664214141,0.14546446,20958.0,20957.0,0.00838298]
[1673664215166,0.620264,20959.0,20957.0,0.00838298]
[1673664215401,0.620264,20959.0,20957.0,0.19421786]
[1673664215886,0.620264,20959.0,20957.0,0.00838298]
[1673664216873,0.16569412,20958.0,20957.0,0.00838298]
[1673664217386,6e-05,20958.0,20957.0,0.25513893]
[1673664217638,6e-05,20958.0,20957.0,1.84503017]
[1673664218121,6e-05,20958.0,20957.0,1.84503045]
[1673664218367,1.240247,20964.0,20958.0,0.36492845]
[1673664218617,1.40337129,20964.0,20959.0,0.33310467]
[1673664218863,1.40337129,20964.0,20960.0,0.19072595]
[1673664219132,1.40337129,20964.0,20961.0,0.19072595]
[1673664219382,1.40337129,20964.0,20962.0,0.37070691]
[1673664219629,0.77867819,20965.0,20962.0,0.37070691]
[1673664219865,0.78714935,20966.0,20962.0,0.37070691]
[1673664220115,0.18583907,20965.0,20962.0,0.37070691]
[1673664220366,0.62008,20966.0,20962.0,0.37070691]
[1673664220611,3.22253,20967.0,20962.0,0.19072595]
[1673664220853,0.21368006,20970.0,20963.0,0.19072595]
[1673664221096,0.1432391,20968.0,20964.0,0.19072595]
[1673664221332,0.1432391,20968.0,20965.0,0.51142895]
[1673664221579,0.14172092,20967.0,20963.0,0.96250972]
[1673664221832,0.240208,20967.0,20964.0,0.320719]
[1673664222083,0.61997,20969.0,20964.0,0.2]
[1673664222328,0.91550267,20969.0,20965.0,0.47637169]
[1673664222574,0.81701559,20969.0,20965.0,0.34639164]
[1673664222792,0.81701559,20969.0,20966.0,0.320686]
[1673664223035,0.19704559,20969.0,20966.0,0.19072595]
[1673664223278,0.19704559,20969.0,20965.0,0.15566569]
[1673664223585,0.19704559,20969.0,20965.0,0.34639164]
[1673664223830,0.19704559,20969.0,20966.0,0.320685]
[1673664224069,0.19704559,20969.0,20965.0,0.34639164]
[1673664224070,0.19704559,20969.0,20967.0,0.320669]
[1673664224316,0.19704559,20969.0,20965.0,0.77574569]
[1673664224566,0.21368006,20970.0,20966.0,0.15729963]
[1673664224818,0.21368006,20970.0,20967.0,0.320668]
[1673664225063,0.21368006,20970.0,20967.0,0.19072595]
[1673664225313,0.21368006,20970.0,20968.0,0.320651]
[1673664225556,0.21368006,20970.0,20969.0,0.619962]
[1673664225811,0.21368006,20970.0,20969.0,0.940596]
[1673664226542,0.21368006,20970.0,20969.0,1.140596]
[1673664227536,0.21368006,20970.0,20969.0,1.32831005]
[1673664227797,0.21368006,20970.0,20969.0,1.140596]
[1673664228049,0.01045286,20973.0,20970.0,0.2]
[1673664228295,0.01045286,20973.0,20971.0,2.03760469]
[1673664228565,0.01045286,20973.0,20972.0,0.2]
[1673664228810,0.01045286,20973.0,20972.0,1.140454]
[1673664229556,0.01045286,20973.0,20972.0,0.940454]
[1673664229801,0.01045286,20973.0,20972.0,1.1012952]
[1673664230562,0.01045286,20973.0,20972.0,1.140454]
[1673664230808,0.01045286,20973.0,20972.0,1.29255734]
[1673664231048,0.01045286,20973.0,20972.0,0.47268334]
[1673664231300,0.01045286,20973.0,20972.0,0.32058]
[1673664231561,0.01045286,20973.0,20971.0,1.1453]
[1673664231562,0.01045286,20973.0,20971.0,1.33416931]
[1673664232296,0.17666928,20973.0,20968.0,0.620158]
[1673664232552,0.26979289,20972.0,20970.0,0.17001636]
[1673664232792,0.01045286,20973.0,20970.0,0.17001636]
[1673664233288,0.01045286,20973.0,20970.0,0.78994236]
[1673664233528,0.01045286,20973.0,20971.0,0.320597]
[1673664233781,0.01045286,20973.0,20970.0,0.78994236]
[1673664233999,0.17384267,20973.0,20970.0,0.17001636]
[1673664235763,0.17384267,20973.0,20971.0,0.320596]
[1673664236001,0.01045286,20973.0,20970.0,0.78994836]
[1673664236268,0.19402853,20972.0,20970.0,0.17001636]
[1673664237497,0.01045286,20973.0,20970.0,0.17001636]
[1673664237994,0.16865246,20973.0,20970.0,0.17001636]
[1673664238494,0.16865246,20973.0,20967.0,2.701311]
[1673664238495,0.19366681,20972.0,20967.0,2.701311]
[1673664238752,0.09848708,20971.0,20969.0,0.17766986]
[1673664238992,0.19366681,20972.0,20969.0,0.17766986]
[1673664240532,0.19366681,20972.0,20970.0,0.320615]
[1673664240775,0.19366681,20972.0,20969.0,0.17766986]
[1673664241757,0.01045286,20973.0,20970.0,0.15883911]